fUST/lending_fUST_20240924
["ID","MTS","AMOUNT","RATE_DAILY","PERIOD"]
[339021103,1727130697942,-1509.279157,0.00035213,2]
[339021104,1727130697952,-839.352758,0.00035213,2]
[339021105,1727130697961,-585.313618,0.00035213,2]
[339021106,1727130697971,-451.959178,0.00035213,2]
[339021107,1727130697980,-315.419004,0.00035213,2]
[339021108,1727130697990,-193.69679,0.00035213,2]
[339021109,1727130698000,-156.083631,0.00035213,2]
[339021110,1727130698010,-729.0,0.00035246,2]
[339021111,1727130698019,-500.0,0.00035342,10]
[339021112,1727130698029,-719.75,0.00035342,30]
[339021113,1727130698040,-969.66,0.00035342,30]
[339021114,1727130698049,-711.06,0.00035342,30]
[339021115,1727130698059,-514.47,0.00035342,30]
[339021116,1727130698068,-513.89,0.00035342,30]
[339021117,1727130698078,-584.13,0.00035342,30]
[339021118,1727130698088,-984.17,0.00035342,30]
[339021119,1727130698097,-683.52,0.00035342,30]
[339021120,1727130698107,-582.12813438,0.00035342,30]
[339021121,1727130698117,-610.08,0.00035342,30]
[339021122,1727130698126,-1045.6,0.00035342,7]
[339021123,1727130698136,-859.64,0.00035342,30]
[339021124,1727130698146,-1071.88,0.00035342,30]
[339021125,1727130698156,-607.11,0.00035342,30]
[339021126,1727130698305,-332.32960779,0.00035342,30]
[339021127,1727130698326,-500.0,0.00035342,30]
[339021128,1727130698336,-678.42,0.00035342,30]
[339021129,1727130698346,-520.8,0.00035342,30]
[339021130,1727130698355,-581.01,0.00035342,30]
[339021131,1727130698365,-624.97,0.00035342,30]
[339021132,1727130698375,-500.0,0.00035342,30]
[339021133,1727130698384,-746.07,0.00035342,30]
[339021134,1727130698394,-606.75,0.00035342,30]
[339021135,1727130698404,-500.0,0.00035342,30]
[339021136,1727130698414,-572.02,0.00035342,30]
[339021137,1727130698424,-527.38,0.00035342,30]
[339021138,1727130698434,-500.0,0.00035342,30]
[339021139,1727130698444,-2283.61,0.00035342,30]
[339021140,1727130698453,-729.07,0.00035342,25]
[339021141,1727130698463,-500.0,0.00035342,30]
[339021142,1727130698474,-381.83354841,0.00035342,30]
[339021143,1727130698484,-500.0,0.00035342,30]
[339021144,1727130698494,-500.0,0.00035342,30]
[339021145,1727130698504,-639.96,0.00035342,30]
[339021146,1727130698514,-3024.97,0.00035342,30]
[339021147,1727130698524,-1122.08,0.00035342,30]
[339021148,1727130698534,-500.0,0.00035342,30]
[339021149,1727130698548,-532.96,0.00035342,30]
[339021150,1727130698558,-288.45399045,0.00035342,30]
[339021151,1727130698567,-500.0,0.00035342,30]
[339021152,1727130698578,-404.02946689,0.00035342,30]
[339021153,1727130698587,-625.74,0.00035342,30]
[339021154,1727130698597,-783.45,0.00035342,30]
[339021155,1727130698606,-1230.74,0.00035342,30]
[339021156,1727130698616,-1846.29,0.00035342,30]
[339021157,1727130698625,-500.0,0.00035342,30]
[339021158,1727130698635,-1397.17,0.00035342,2]
[339021159,1727130698644,-684.0,0.00035342,30]
[339021160,1727130698654,-604.33,0.00035342,30]
[339021161,1727130698665,-500.0,0.00035342,30]
[339021162,1727130698674,-825.29,0.00035342,30]
[339021163,1727130698684,-624.72,0.00035342,30]
[339021164,1727130698694,-248.98,0.00035342,30]
[339021165,1727130698704,-500.0,0.00035342,30]
[339021166,1727130698714,-514.15,0.00035342,30]
[339021167,1727130698724,-500.0,0.00035342,30]
[339021168,1727130698734,-741.53,0.00035342,30]
[339021169,1727130698744,-500.0,0.00035342,120]
[339021170,1727130698753,-1260.11,0.00035342,30]
[339021171,1727130698763,-545.43,0.00035342,30]
[339021172,1727130698772,-536.2,0.00035342,30]
[339021173,1727130698782,-1484.78,0.00035342,30]
[339021174,1727130698794,-4278.99,0.00035342,21]
[339021175,1727130698803,-500.0,0.00035342,30]
[339021176,1727130698813,-500.0,0.00035342,30]
[339021177,1727130698824,-729.6,0.00035342,30]
[339021178,1727130698836,-527.26,0.00035342,30]
[339021179,1727130698846,-1276.76,0.00035342,30]
[339021180,1727130698856,-500.0,0.00035342,30]
[339021181,1727130698865,-1463.58,0.00035342,30]
[339021182,1727130698876,-1844.92,0.00035342,30]
[339021183,1727130698886,-612.36,0.00035342,30]
[339021184,1727130698895,-351.22214569,0.00035342,30]
[339021185,1727130698905,-575.07,0.00035342,30]
[339021186,1727130698915,-500.0,0.00035342,30]
[339021187,1727130698925,-1266.01,0.00035342,30]
[339021188,1727130698934,-1200.54,0.00035342,30]
[339021189,1727130698944,-501.9,0.00035342,30]
[339021190,1727130698954,-500.0,0.00035342,30]
[339021191,1727130698964,-1081.62,0.00035342,30]
[339021192,1727130698973,-500.0,0.00035342,30]
[339021193,1727130698983,-1820.79,0.00035342,7]
[339021194,1727130698993,-694.3,0.00035342,30]
[339021195,1727130699002,-1532.58,0.00035342,30]
[339021196,1727130699012,-1035.06,0.00035342,30]
[339021197,1727130699022,-40342.48,0.00035342,18]
[339021198,1727130699031,-161.413993,0.00035358,2]
[339021199,1727130699042,-157.46,0.000354,30]
[339021200,1727130699052,-7357.12,0.000354,14]
[339021201,1727130699061,-1966.29,0.000354,14]
[339021202,1727130699070,-3008.61,0.000354,14]
[339021203,1727130699080,-719.75,0.00035479,30]
[339021204,1727130699090,-969.66,0.00035479,30]
[339021205,1727130699100,-711.06,0.00035479,30]
[339021206,1727130699110,-514.47,0.00035479,30]
[339021207,1727130699119,-513.89,0.00035479,30]
[339021208,1727130699128,-584.13,0.00035479,30]
[339021209,1727130699137,-984.17,0.00035479,30]
[339021210,1727130699147,-683.52,0.00035479,30]
[339021211,1727130699157,-610.08,0.00035479,30]
[339021212,1727130699166,-1045.6,0.00035479,7]
[339021213,1727130699176,-859.64,0.00035479,30]
[339021214,1727130699185,-1071.88,0.00035479,30]
[339021215,1727130699195,-607.11,0.00035479,30]
[339021216,1727130699204,-500.0,0.00035479,30]
[339021217,1727130699214,-678.42,0.00035479,30]
[339021218,1727130699223,-520.8,0.00035479,30]
[339021219,1727130699233,-581.01,0.00035479,30]
[339021220,1727130699243,-624.97,0.00035479,30]
[339021221,1727130699253,-500.0,0.00035479,30]
[339021222,1727130699263,-746.07,0.00035479,30]
[339021223,1727130699274,-606.75,0.00035479,30]
[339021224,1727130699283,-323.96675264,0.00035479,30]
[339021225,1727130699294,-572.02,0.00035479,30]
[339021226,1727130699304,-527.38,0.00035479,30]
[339021227,1727130699314,-500.0,0.00035479,30]
[339021228,1727130699325,-2283.61,0.00035479,30]
[339021229,1727130699336,-729.07,0.00035479,25]
[339021230,1727130699345,-500.0,0.00035479,30]
[339021231,1727130699355,-251.26156449,0.00035479,30]
[339021232,1727130699365,-330.36191335,0.00035479,30]
[339021233,1727130699375,-639.96,0.00035479,30]
[339021234,1727130699385,-3024.97,0.00035479,30]
[339021235,1727130699395,-1122.08,0.00035479,30]
[339021236,1727130699405,-500.0,0.00035479,30]
[339021237,1727130699415,-532.96,0.00035479,30]
[339021238,1727130699426,-188.76440727,0.00035479,30]
[339021239,1727130699435,-625.74,0.00035479,30]
[339021240,1727130699445,-783.45,0.00035479,30]
[339021241,1727130699455,-1230.74,0.00035479,30]
[339021242,1727130699465,-1846.29,0.00035479,30]
[339021243,1727130699475,-406.27247177,0.00035479,30]
[339021244,1727130699484,-1397.17,0.00035479,2]
[339021245,1727130699498,-684.0,0.00035479,30]
[339021246,1727130699508,-604.33,0.00035479,30]
[339021247,1727130699518,-500.0,0.00035479,30]
[339021248,1727130699528,-825.29,0.00035479,30]
[339021249,1727130699538,-624.72,0.00035479,30]
[339021250,1727130699549,-248.98,0.00035479,30]
[339021251,1727130699559,-418.98726427,0.00035479,30]
[339021252,1727130699569,-514.15,0.00035479,30]
[339021253,1727130699579,-500.0,0.00035479,30]
[339021254,1727130699589,-741.53,0.00035479,30]
[339021255,1727130699599,-500.0,0.00035479,120]
[339021256,1727130699608,-1260.11,0.00035479,30]
[339021257,1727130699618,-545.43,0.00035479,30]
[339021258,1727130699627,-536.2,0.00035479,30]
[339021259,1727130699637,-1484.78,0.00035479,30]
[339021260,1727130699647,-4278.99,0.00035479,21]
[339021261,1727130699656,-500.0,0.00035479,30]
[339021262,1727130699666,-500.0,0.00035479,30]
[339021263,1727130699676,-729.6,0.00035479,30]
[339021264,1727130699685,-527.26,0.00035479,30]
[339021265,1727130699694,-1276.76,0.00035479,30]
[339021266,1727130699704,-500.0,0.00035479,30]
[339021267,1727130699714,-1463.58,0.00035479,30]
[339021268,1727130699723,-1844.92,0.00035479,30]
[339021269,1727130699732,-612.36,0.00035479,30]
[339021270,1727130699742,-500.0,0.00035479,30]
[339021271,1727130699751,-1266.01,0.00035479,30]
[339021272,1727130699760,-1200.54,0.00035479,30]
[339021273,1727130699769,-501.9,0.00035479,30]
[339021274,1727130699779,-622.54973156,0.00035479,30]
[339021275,1727130699788,-1081.62,0.00035479,30]
[339021276,1727130699797,-500.0,0.00035479,30]
[339021277,1727130699807,-1820.79,0.00035479,7]
[339021278,1727130699816,-694.3,0.00035479,30]
[339021279,1727130699826,-1532.58,0.00035479,30]
[339021280,1727130699839,-1035.06,0.00035479,30]
[339021281,1727130699848,-10000.0,0.00035512,4]
[339021282,1727130699857,-2500.0,0.00035591,3]
[339021283,1727130699866,-687.6,0.00035598,15]
[339021284,1727130699877,-2500.0,0.000356,3]
[339021285,1727130699886,-2500.0,0.00035609,3]
[339021286,1727130699896,-719.75,0.00035616,30]
[339021287,1727130699907,-969.66,0.00035616,30]
[339021288,1727130699917,-711.06,0.00035616,30]
[339021289,1727130699926,-514.47,0.00035616,30]
[339021290,1727130699935,-513.89,0.00035616,30]
[339021291,1727130699945,-584.13,0.00035616,30]
[339021292,1727130699960,-984.17,0.00035616,30]
[339021293,1727130699970,-683.52,0.00035616,30]
[339021294,1727130699980,-610.08,0.00035616,30]
[339021295,1727130699990,-1045.6,0.00035616,7]
[339021296,1727130699999,-859.64,0.00035616,30]
[339021297,1727130700009,-1071.88,0.00035616,30]
[339021298,1727130700019,-607.11,0.00035616,30]
[339021299,1727130700028,-500.0,0.00035616,30]
[339021300,1727130700038,-678.42,0.00035616,30]
[339021301,1727130700047,-520.8,0.00035616,30]
[339021302,1727130700057,-581.01,0.00035616,30]
[339021303,1727130700067,-624.97,0.00035616,30]
[339021304,1727130700076,-500.0,0.00035616,30]
[339021305,1727130700086,-746.07,0.00035616,30]
[339021306,1727130700095,-606.75,0.00035616,30]
[339021307,1727130700105,-572.02,0.00035616,30]
[339021308,1727130700115,-527.38,0.00035616,30]
[339021309,1727130700125,-500.0,0.00035616,30]
[339021310,1727130700135,-2283.61,0.00035616,30]
[339021311,1727130700144,-729.07,0.00035616,25]
[339021312,1727130700153,-269.43794583,0.00035616,30]
[339021313,1727130700163,-639.96,0.00035616,30]
[339021314,1727130700173,-3024.97,0.00035616,30]
[339021315,1727130700183,-1122.08,0.00035616,30]
[339021316,1727130700193,-519.73982439,0.00035616,30]
[339021317,1727130700203,-532.96,0.00035616,30]
[339021318,1727130700212,-625.74,0.00035616,30]
[339021319,1727130700221,-783.45,0.00035616,30]
[339021320,1727130700231,-1230.74,0.00035616,30]
[339021321,1727130700241,-1846.29,0.00035616,30]
[339021322,1727130700250,-1397.17,0.00035616,2]
[339021323,1727130700260,-684.0,0.00035616,30]
[339021324,1727130700269,-604.33,0.00035616,30]
[339021325,1727130700279,-500.0,0.00035616,30]
[339021326,1727130700289,-825.29,0.00035616,30]
[339021327,1727130700299,-624.72,0.00035616,30]
[339021328,1727130700309,-248.98,0.00035616,30]
[339021329,1727130700319,-514.15,0.00035616,30]
[339021330,1727130700330,-500.0,0.00035616,30]
[339021331,1727130700339,-741.53,0.00035616,30]
[339021332,1727130700349,-500.0,0.00035616,120]
[339021333,1727130700358,-1260.11,0.00035616,30]
[339021334,1727130700368,-545.43,0.00035616,30]
[339021335,1727130700378,-536.2,0.00035616,30]
[339021336,1727130700388,-1484.78,0.00035616,30]
[339021337,1727130700398,-4278.99,0.00035616,21]
[339021338,1727130700407,-178.70985765,0.00035616,30]
[339021339,1727130700418,-611.33046598,0.00035616,30]
[339021340,1727130700428,-729.6,0.00035616,30]
[339021341,1727130700438,-527.26,0.00035616,30]
[339021342,1727130700447,-1276.76,0.00035616,30]
[339021343,1727130700456,-632.40788418,0.00035616,30]
[339021344,1727130700466,-1463.58,0.00035616,30]
[339021345,1727130700475,-1844.92,0.00035616,30]
[339021346,1727130700485,-612.36,0.00035616,30]
[339021347,1727130700494,-500.0,0.00035616,30]
[339021348,1727130700505,-1266.01,0.00035616,30]
[339021349,1727130700514,-1200.54,0.00035616,30]
[339021350,1727130700523,-501.9,0.00035616,30]
[339021351,1727130700533,-1081.62,0.00035616,30]
[339021352,1727130700543,-255.28440885,0.00035616,30]
[339021353,1727130700553,-1820.79,0.00035616,7]
[339021354,1727130700563,-694.3,0.00035616,30]
[339021355,1727130700572,-1532.58,0.00035616,30]
[339021356,1727130700582,-1035.06,0.00035616,30]
[339021357,1727130700591,-500.0,0.00035616,7]
[339021358,1727130700603,-500.0,0.00035616,7]
[339021359,1727130700612,-500.0,0.00035616,7]
[339021360,1727130700622,-500.0,0.00035616,7]
[339021361,1727130700633,-500.0,0.00035616,7]
[339021362,1727130700642,-500.0,0.00035616,7]
[339021363,1727130700652,-520.33179266,0.00035616,7]
[339021364,1727130700662,-500.0,0.00035616,7]
[339021365,1727130700671,-500.0,0.00035616,7]
[339021366,1727130700681,-500.0,0.00035616,7]
[339021367,1727130700691,-500.0,0.00035616,7]
[339021368,1727130700701,-500.0,0.00035616,7]
[339021369,1727130700711,-500.0,0.00035616,7]
[339021370,1727130700720,-500.0,0.00035616,7]
[339021371,1727130700730,-500.0,0.00035616,7]
[339021372,1727130700740,-500.0,0.00035616,7]
[339021373,1727130700750,-500.0,0.00035616,7]
[339021374,1727130700759,-500.0,0.00035616,7]
[339021375,1727130700769,-500.0,0.00035616,7]
[339021376,1727130700780,-500.0,0.00035616,7]
[339021377,1727130700790,-500.0,0.00035616,7]
[339021378,1727130700799,-500.0,0.00035616,7]
[339021379,1727130700809,-500.0,0.00035616,7]
[339021380,1727130700819,-500.0,0.00035616,7]
[339021381,1727130700831,-500.0,0.00035616,7]
[339021382,1727130700841,-500.0,0.00035616,7]
[339021383,1727130700859,-500.0,0.00035616,7]
[339021384,1727130700870,-500.0,0.00035616,7]
[339021385,1727130700881,-500.0,0.00035616,7]
[339021386,1727130700891,-500.0,0.00035616,7]
[339021387,1727130700902,-500.0,0.00035616,7]
[339021388,1727130700912,-500.0,0.00035616,7]
[339021389,1727130700921,-500.0,0.00035616,7]
[339021390,1727130700934,-500.0,0.00035616,7]
[339021391,1727130700944,-283.440768,0.00035616,120]
[339021392,1727130700953,-400.0,0.00035616,2]
[339021393,1727130700963,-2500.0,0.00035617,3]
[339021394,1727130700973,-2500.0,0.00035626,3]
[339021395,1727130700982,-2500.0,0.00035635,3]
[339021396,1727130700993,-194.455579,0.00035647,2]
[339021397,1727130701002,-208.111508,0.00035647,2]
[339021398,1727130701012,-1618.417369,0.00035647,2]
[339021399,1727130701022,-1509.279157,0.00035647,2]
[339021400,1727130701032,-839.352758,0.00035647,2]
[339021401,1727130701042,-585.313618,0.00035647,2]
[339021402,1727130701052,-451.959178,0.00035647,2]
[339021403,1727130701062,-315.419004,0.00035647,2]
[339021404,1727130701072,-193.69679,0.00035647,2]
[339021405,1727130701082,-156.083631,0.00035647,2]
[339021406,1727130701092,-3207.253,0.00035666,7]
[339021407,1727130701102,-150.098,0.00035666,7]
[339021408,1727130701112,-300.186,0.00035666,7]
[339021409,1727130701122,-2682.4681908,0.000357,30]
[339021410,1727130701132,-719.75,0.00035753,30]
[339021411,1727130701142,-969.66,0.00035753,30]
[339021412,1727130701152,-711.06,0.00035753,30]
[339021413,1727130701163,-514.47,0.00035753,30]
[339021414,1727130701172,-513.89,0.00035753,30]
[339021415,1727130701182,-584.13,0.00035753,30]
[339021416,1727130701193,-984.17,0.00035753,30]
[339021417,1727130701203,-683.52,0.00035753,30]
[339021418,1727130701213,-610.08,0.00035753,30]
[339021419,1727130701222,-1045.6,0.00035753,7]
[339021420,1727130701232,-859.64,0.00035753,30]
[339021421,1727130701242,-1071.88,0.00035753,30]
[339021422,1727130701251,-607.11,0.00035753,30]
[339021423,1727130701262,-500.0,0.00035753,30]
[339021424,1727130701271,-678.42,0.00035753,30]
[339021425,1727130701281,-520.8,0.00035753,30]
[339021426,1727130701292,-581.01,0.00035753,30]
[339021427,1727130701301,-624.97,0.00035753,30]
[339021428,1727130701311,-500.0,0.00035753,30]
[339021429,1727130701320,-746.07,0.00035753,30]
[339021430,1727130701330,-606.75,0.00035753,30]
[339021431,1727130701339,-572.02,0.00035753,30]
[339021432,1727130701349,-527.38,0.00035753,30]
[339021433,1727130701359,-500.0,0.00035753,30]
[339021434,1727130701368,-2283.61,0.00035753,30]
[339021435,1727130701378,-729.07,0.00035753,25]
[339021436,1727130701387,-639.96,0.00035753,30]
[339021437,1727130701398,-3024.97,0.00035753,30]
[339021438,1727130701408,-1122.08,0.00035753,30]
[339021439,1727130701418,-532.96,0.00035753,30]
[339021440,1727130701427,-625.74,0.00035753,30]
[339021441,1727130701437,-783.45,0.00035753,30]
[339021442,1727130701447,-1230.74,0.00035753,30]
[339021443,1727130701456,-1846.29,0.00035753,30]
[339021444,1727130701467,-1397.17,0.00035753,2]
[339021445,1727130701477,-684.0,0.00035753,30]
[339021446,1727130701487,-604.33,0.00035753,30]
[339021447,1727130701497,-442.56171766,0.00035753,30]
[339021448,1727130701507,-825.29,0.00035753,30]
[339021449,1727130701517,-624.72,0.00035753,30]
[339021450,1727130701527,-248.98,0.00035753,30]
[339021451,1727130701536,-514.15,0.00035753,30]
[339021452,1727130701547,-637.1805647,0.00035753,30]
[339021453,1727130701556,-741.53,0.00035753,30]
[339021454,1727130701567,-500.0,0.00035753,120]
[339021455,1727130701576,-1260.11,0.00035753,30]
[339021456,1727130701586,-545.43,0.00035753,30]
[339021457,1727130701598,-536.2,0.00035753,30]
[339021458,1727130701610,-1484.78,0.00035753,30]
[339021459,1727130701619,-4278.99,0.00035753,21]
[339021460,1727130701629,-729.6,0.00035753,30]
[339021461,1727130701639,-527.26,0.00035753,30]
[339021462,1727130701648,-1276.76,0.00035753,30]
[339021463,1727130701658,-1463.58,0.00035753,30]
[339021464,1727130701667,-1844.92,0.00035753,30]
[339021465,1727130701676,-612.36,0.00035753,30]
[339021466,1727130701686,-500.0,0.00035753,30]
[339021467,1727130701696,-1266.01,0.00035753,30]
[339021468,1727130701705,-1200.54,0.00035753,30]
[339021469,1727130701715,-501.9,0.00035753,30]
[339021470,1727130701725,-1081.62,0.00035753,30]
[339021471,1727130701735,-1820.79,0.00035753,7]
[339021472,1727130701745,-694.3,0.00035753,30]
[339021473,1727130701755,-1532.58,0.00035753,30]
[339021474,1727130701764,-2500.0,0.00035765,5]
[339021475,1727130701774,-542.88,0.00035765,30]
[339021476,1727130701783,-184.75,0.000358,10]
[339021477,1727130701793,-719.75,0.0003589,30]
[339021478,1727130701803,-969.66,0.0003589,30]
[339021479,1727130701813,-711.06,0.0003589,30]
[339021480,1727130701823,-514.47,0.0003589,30]
[339021481,1727130701837,-513.89,0.0003589,30]
[339021482,1727130701846,-584.13,0.0003589,30]
[339021483,1727130701856,-984.17,0.0003589,30]
[339021484,1727130701866,-683.52,0.0003589,30]
[339021485,1727130701876,-610.08,0.0003589,30]
[339021486,1727130701886,-1045.6,0.0003589,7]
[339021487,1727130701896,-859.64,0.0003589,30]
[339021488,1727130701907,-1071.88,0.0003589,30]
[339021489,1727130701916,-607.11,0.0003589,30]
[339021490,1727130701926,-595.15217793,0.0003589,30]
[339021491,1727130701936,-678.42,0.0003589,30]
[339021492,1727130701946,-520.8,0.0003589,30]
[339021493,1727130701956,-581.01,0.0003589,30]
[339021494,1727130701966,-624.97,0.0003589,30]
[339021495,1727130701976,-500.0,0.0003589,30]
[339021496,1727130701985,-746.07,0.0003589,30]
[339021497,1727130701995,-606.75,0.0003589,30]
[339021498,1727130702004,-572.02,0.0003589,30]
[339021499,1727130702014,-527.38,0.0003589,30]
[339021500,1727130702023,-500.0,0.0003589,30]
[339021501,1727130702230,-2283.61,0.0003589,30]
[339021502,1727130702240,-729.07,0.0003589,25]
[339021503,1727130702251,-639.96,0.0003589,30]
[339021504,1727130702261,-3024.97,0.0003589,30]
[339021505,1727130702270,-1122.08,0.0003589,30]
[339021506,1727130702280,-532.96,0.0003589,30]
[339021507,1727130702289,-625.74,0.0003589,30]
[339021508,1727130702299,-783.45,0.0003589,30]
[339021509,1727130702308,-1230.74,0.0003589,30]
[339021510,1727130702318,-1846.29,0.0003589,30]
[339021511,1727130702327,-1397.17,0.0003589,2]
[339021512,1727130702337,-684.0,0.0003589,30]
[339021513,1727130702346,-604.33,0.0003589,30]
[339021514,1727130702356,-825.29,0.0003589,30]
[339021515,1727130702365,-624.72,0.0003589,30]
[339021516,1727130702374,-248.98,0.0003589,30]
[339021517,1727130702384,-514.15,0.0003589,30]
[339021518,1727130702394,-741.53,0.0003589,30]
[339021519,1727130702403,-500.0,0.0003589,120]
[339021520,1727130702413,-1260.11,0.0003589,30]
[339021521,1727130702422,-545.43,0.0003589,30]
[339021522,1727130702432,-536.2,0.0003589,30]
[339021523,1727130702441,-1484.78,0.0003589,30]
[339021524,1727130702451,-4278.99,0.0003589,21]
[339021525,1727130702460,-729.6,0.0003589,30]
[339021526,1727130702470,-527.26,0.0003589,30]
[339021527,1727130702479,-1276.76,0.0003589,30]
[339021528,1727130702488,-1463.58,0.0003589,30]
[339021529,1727130702498,-1844.92,0.0003589,30]
[339021530,1727130702507,-612.36,0.0003589,30]
[339021531,1727130702517,-298.43838418,0.0003589,30]
[339021532,1727130702526,-1266.01,0.0003589,30]
[339021533,1727130702535,-1200.54,0.0003589,30]
[339021534,1727130702545,-501.9,0.0003589,30]
[339021535,1727130702555,-1081.62,0.0003589,30]
[339021536,1727130702564,-1820.79,0.0003589,7]
[339021537,1727130702574,-694.3,0.0003589,30]
[339021538,1727130702583,-1532.58,0.0003589,30]
[339021539,1727130702592,-160.0,0.00035898,3]
[339021540,1727130702602,-500.0,0.00035918,5]
[339021541,1727130702612,-500.0,0.00035918,5]
[339021542,1727130702621,-161.413993,0.00035937,2]
[339021543,1727130702630,-2500.0,0.00035962,3]
[339021544,1727130702640,-2500.0,0.00035971,3]
[339021545,1727130702649,-2325.98009794,0.0003598,3]
[339021546,1727130702658,-2500.0,0.0003598,3]
[339021547,1727130702667,-8605.0,0.00036,30]
[339021548,1727130702677,-300.0,0.00036,12]
[339021549,1727130702686,-300.0,0.00036,12]
[339021550,1727130702695,-151.84,0.00036,14]
[339021551,1727130702704,-150.0,0.00036007,2]
[339021552,1727130702714,-525.0,0.00036007,2]
[339021553,1727130702723,-1216.0,0.00036007,2]
[339021554,1727130702733,-719.92924875,0.00036027,30]
[339021555,1727130702742,-969.85715637,0.00036027,30]
[339021556,1727130702752,-711.26261295,0.00036027,30]
[339021557,1727130702761,-514.47925635,0.00036027,30]
[339021558,1727130702770,-513.93590446,0.00036027,30]
[339021559,1727130702779,-584.27997005,0.00036027,30]
[339021560,1727130702789,-984.3370677,0.00036027,30]
[339021561,1727130702799,-683.67691382,0.00036027,30]
[339021562,1727130702807,-610.31793107,0.00036027,30]
[339021563,1727130702816,-1045.80040796,0.00036027,7]
[339021564,1727130702828,-859.87611044,0.00036027,30]
[339021565,1727130702839,-1072.00751351,0.00036027,30]
[339021566,1727130702848,-607.14545517,0.00036027,30]
[339021567,1727130702857,-678.44248847,0.00036027,30]
[339021568,1727130702867,-520.93632331,0.00036027,30]
[339021569,1727130702877,-581.13928891,0.00036027,30]
[339021570,1727130702886,-625.20453193,0.00036027,30]
[339021571,1727130702895,-199.40266722,0.00036027,30]
[339021572,1727130702907,-746.24547705,0.00036027,30]
[339021573,1727130702917,-606.83137632,0.00036027,30]
[339021574,1727130702926,-572.14,0.00036027,30]
[339021575,1727130702936,-527.5456723,0.00036027,30]
[339021576,1727130702945,-300.0868243,0.00036027,30]
[339021577,1727130702955,-2283.73402492,0.00036027,30]
[339021578,1727130702964,-729.07823915,0.00036027,25]
[339021579,1727130702973,-640.00068222,0.00036027,30]
[339021580,1727130702982,-3025.20324672,0.00036027,30]
[339021581,1727130702992,-1122.08290491,0.00036027,30]
[339021582,1727130703002,-533.0,0.00036027,30]
[339021583,1727130703011,-625.83241057,0.00036027,30]
[339021584,1727130703020,-783.48855982,0.00036027,30]
[339021585,1727130703030,-1230.74800497,0.00036027,30]
[339021586,1727130703039,-1846.46718546,0.00036027,30]
[339021587,1727130703048,-1397.37792146,0.00036027,2]
[339021588,1727130703058,-684.03752348,0.00036027,30]
[339021589,1727130703068,-604.55236604,0.00036027,30]
[339021590,1727130703077,-825.38001278,0.00036027,30]
[339021591,1727130703086,-624.83341588,0.00036027,30]
[339021592,1727130703096,-249.1,0.00036027,30]
[339021593,1727130703106,-514.35268539,0.00036027,30]
[339021594,1727130703115,-741.61471564,0.00036027,30]
[339021595,1727130703125,-449.82101192,0.00036027,120]
[339021596,1727130703134,-1260.30351537,0.00036027,30]
[339021597,1727130703144,-545.47795276,0.00036027,30]
[339021598,1727130703154,-536.40847876,0.00036027,30]
[339021599,1727130703163,-1484.99760307,0.00036027,30]
[339021600,1727130703172,-4279.02011957,0.00036027,21]
[339021601,1727130703182,-729.76293526,0.00036027,30]
[339021602,1727130703191,-527.28510189,0.00036027,30]